bitfinex/quotes_ETHUSD_20220118
["timestamp","ask_amount","ask_price","bid_price","bid_amount"]
[1642501984787,6.82461266,3187.6,3186.2,0.11710077]
[1642501984788,8.19808974,3187.5,3186.2,0.11710077]
[1642501985034,8.19808974,3187.5,3185.2,2.8234841]
[1642501985035,5.4,3187.3,3185.2,0.1255]
[1642501985234,0.18698055,3187.2,3186.3,0.00341054]
[1642501985434,0.18698055,3187.2,3186.3,0.53978914]
[1642501985435,0.12720527,3187.2,3186.3,0.53978914]
[1642501985634,0.12720527,3187.2,3185.6,0.89396434]
[1642501985635,1.11718708,3187.0,3185.6,0.89396434]
[1642501985835,3.80387685,3187.1,3186.4,0.00284211]
[1642501985836,0.1255,3186.9,3186.4,0.00284211]
[1642501986036,0.0778384,3187.4,3186.4,0.00284211]
[1642501986037,0.1255,3187.3,3186.4,0.75473895]
[1642501986234,0.54737371,3187.6,3186.8,0.01214713]
[1642501986435,0.0022737,3187.3,3186.8,0.01214713]
[1642501986635,0.0022737,3187.3,3186.9,0.53625242]
[1642501986943,1.13246858,3187.2,3186.9,0.83625242]
[1642501987145,1.13246858,3187.2,3186.6,0.3253]
[1642501987146,6.61861073,3187.1,3186.6,0.012]
[1642501987338,0.00113685,3187.1,3186.6,0.012]
[1642501987540,0.00113685,3187.1,3186.7,0.00113684]
[1642501987837,1.13076331,3187.2,3186.8,1.46902243]
[1642501987838,0.63190016,3187.2,3186.8,1.46902243]
[1642501988038,0.63190016,3187.2,3187.1,0.00113685]
[1642501988238,4.47082723,3187.2,3187.1,0.00113685]
[1642501988444,1.97082723,3187.2,3187.1,0.00113685]
[1642501988640,0.63190016,3187.2,3187.1,0.00113685]
[1642501988921,1.0,3187.5,3187.1,0.00113685]
[1642501989106,5.4,3187.4,3186.3,2.89808974]
[1642501989307,5.93454367,3187.4,3186.6,1.47312914]
[1642501989507,1.0,3187.2,3186.6,1.47312914]
[1642501989710,1.0,3187.2,3186.8,0.499]
[1642501989908,1.3340272,3186.9,3186.7,2.89808974]
[1642501990108,1.3340272,3186.9,3186.6,1.47312914]
[1642501990307,1.3340272,3186.9,3186.6,1.97312914]
[1642501990608,5.776,3186.8,3186.4,4.211e-05]
[1642501990908,1.30013657,3186.7,3186.4,4.211e-05]
[1642501991106,0.376,3186.6,3186.4,4.211e-05]
[1642501991307,0.37709473,3186.6,3186.4,4.211e-05]
[1642501991608,0.00109473,3186.6,3186.1,0.01385143]
[1642501991806,0.00109473,3186.6,3186.1,0.00174738]
[1642501992006,2.89808974,3187.6,3186.2,0.00117896]
[1642501992007,2.75885447,3187.6,3186.2,0.00117896]
[1642501992210,0.0778384,3187.8,3185.9,0.012]
[1642501992211,0.376,3187.4,3186.1,0.00174738]
[1642501992406,1.0,3186.8,3186.1,0.00284211]
[1642501992639,1.0,3186.8,3186.3,0.5]
[1642501992841,1.0,3186.8,3186.3,1.7065]
[1642501993041,0.95,3186.8,3186.6,1.0]
[1642501993241,1.0,3188.1,3186.7,0.01216497]
[1642501993438,1.0,3188.1,3187.0,4.5]
[1642501993643,1.0,3188.1,3187.0,5.2519]
[1642501993842,1.30157304,3187.9,3187.0,5.5519]
[1642501994043,1.10292636,3187.4,3187.0,5.2519]
[1642501994244,1.10292636,3187.4,3187.1,0.5]
[1642501994442,1.10292636,3187.4,3186.7,0.00113684]
[1642501994443,5.4,3187.2,3186.7,0.00113684]
[1642501994644,5.4,3187.2,3186.6,0.1254]
[1642501994645,0.0022737,3187.3,3185.6,4.89674143]
[1642501994646,0.06451865,3186.8,3185.6,4.89674143]
[1642501994851,1.22978517,3185.7,3185.6,4.89674143]
[1642501995042,0.0778384,3186.7,3186.3,4.89674143]
[1642501995243,1.396857,3186.6,3186.3,4.89674143]
[1642501995443,1.396857,3186.6,3186.4,0.00170527]
[1642501995444,0.376,3186.5,3186.4,0.00170527]
[1642501996046,0.0778384,3187.7,3186.4,0.00170527]
[1642501996047,0.0778384,3187.7,3186.4,3.11335312]
[1642501996283,0.0778384,3187.7,3187.1,0.259]
[1642501996284,1.0,3187.7,3187.1,0.259]
[1642501996486,1.0,3187.7,3187.0,0.2051]
[1642501996487,0.99628418,3187.7,3187.0,0.2051]
[1642501996688,0.99628418,3187.7,3187.2,0.00170527]
[1642501996989,0.376,3188.3,3187.1,0.77169876]
[1642501997188,1.47073596,3187.9,3187.1,0.77169876]
[1642501997393,1.17850178,3187.8,3187.2,0.00170527]
[1642501997789,0.00113685,3187.7,3187.2,0.00170527]
[1642501997988,1.17697341,3187.4,3187.2,0.00170527]
[1642501998591,6.54994696,3187.3,3187.2,0.00170527]
[1642501998791,6.92594696,3187.3,3187.2,0.00170527]
[1642501998991,6.92594696,3187.3,3187.2,2.68386767]
[1642502000065,1.72594696,3187.3,3187.1,0.76942507]
[1642502000948,1.17697341,3187.4,3187.3,2.56431898]
[1642502001149,2.5202227,3187.4,3187.3,2.56431898]
[1642502001349,2.52135955,3187.4,3187.3,2.56431898]
[1642502001754,1.34438614,3187.4,3187.3,2.56431898]
[1642502002150,1.29438614,3187.4,3187.3,2.56431898]
[1642502002751,2.75336492,3187.4,3187.3,2.56431898]
[1642502003152,2.75336492,3187.4,3187.3,5.50857092]
[1642502003453,2.34506169,3187.4,3187.3,5.50857092]
[1642502004086,2.34506169,3187.4,3186.3,5.02214143]
[1642502004087,5.5085,3187.3,3186.3,5.02214143]
[1642502004289,0.01802348,3187.1,3186.3,4.89674143]
[1642502004490,5.3639,3187.3,3186.4,0.00454738]
[1642502004491,1.53221669,3186.5,3186.4,0.00454738]
[1642502004687,1.46175708,3186.9,3186.5,1.53221116]
[1642502005091,1.46175708,3186.9,3186.6,0.00341054]
[1642502005287,1.771276,3186.8,3186.6,0.00341054]
[1642502006587,1.395276,3186.8,3186.6,0.00341054]
[1642502006987,1.395276,3186.8,3186.6,0.30341054]
[1642502007188,1.395276,3186.8,3186.6,0.00341054]
[1642502007541,1.395276,3186.8,3186.6,0.12891054]
[1642502007835,1.26664444,3187.2,3186.7,0.00284211]
[1642502008230,1.37205417,3187.1,3186.6,0.00341054]
[1642502008843,1.37205417,3187.1,3186.6,0.42891054]
[1642502009236,1.37205417,3187.1,3186.7,0.00284211]
[1642502009537,1.37205417,3187.1,3186.8,0.1255]
[1642502009936,1.37205417,3187.1,3186.9,0.00170527]
[1642502010138,1.37205417,3187.1,3187.0,0.1255]
[1642502010339,1.37205417,3187.1,3186.9,0.00170527]
[1642502010536,0.00113685,3187.4,3187.0,2.55113684]
[1642502010737,0.00113685,3187.4,3187.1,3.16239002]
[1642502010937,0.00113685,3187.4,3187.1,0.4255]
[1642502011137,0.00113685,3187.4,3187.0,0.1255]
[1642502011380,1.2371065,3187.6,3186.9,0.12720527]
[1642502011579,1.2371065,3187.6,3187.1,0.00170527]
[1642502011779,1.2371065,3187.6,3186.8,0.1255]
[1642502011780,1.5407133,3187.5,3187.0,0.00227369]
[1642502011980,1.5407133,3187.5,3187.1,0.01236115]
[1642502011981,1.29708405,3187.5,3187.1,0.01236115]
[1642502012283,1.29708405,3187.5,3187.2,0.00341054]
[1642502013180,1.29708405,3187.5,3186.9,0.00511581]
[1642502013381,0.01121658,3187.4,3186.9,0.00511581]
[1642502013584,1.18098508,3187.3,3186.9,0.00511581]
[1642502013784,1.29708405,3187.5,3187.1,0.01236724]
[1642502013985,5.9766,3189.6,3187.2,0.1254]
[1642502014185,1.2242,3189.7,3187.4,1.0]
[1642502014387,1.2242,3189.7,3188.3,0.01298872]
[1642502014388,0.00852636,3189.3,3188.3,0.01298872]
[1642502014586,0.00852636,3189.3,3187.5,3.6387522]
[1642502014888,1.18034591,3188.2,3187.6,0.00113684]
[1642502015132,1.33074564,3188.1,3187.8,5.4]
[1642502015331,1.33074564,3188.1,3188.0,0.78401]
[1642502015332,1.33245092,3188.1,3188.0,0.78401]
[1642502015535,1.2242,3189.7,3188.1,3.7]
[1642502015739,3.96369821,3189.6,3187.8,0.1254]
[1642502015930,0.376,3189.5,3187.7,0.13819997]
[1642502016133,0.376,3189.5,3187.9,0.00113684]
[1642502016134,1.20844431,3188.3,3187.9,0.00113684]
[1642502016332,1.20844431,3188.3,3187.8,0.00170528]
[1642502016532,2.39664647,3189.3,3189.0,1.14096433]
[1642502016732,1.77264647,3189.3,3189.0,1.14096433]
[1642502016932,1.43002652,3188.1,3187.8,0.00170528]
[1642502017134,1.26840553,3188.1,3187.8,0.00170528]
[1642502017534,1.35755843,3188.9,3187.8,0.00170528]
[1642502017734,1.35755843,3188.9,3187.8,0.01392154]
[1642502017935,18.43,3189.9,3187.9,2.3]
[1642502018138,18.43,3189.9,3188.0,2.79362696]
[1642502018139,0.376,3189.6,3188.0,2.79362696]
[1642502018335,1.32624406,3189.4,3188.0,2.80044804]
[1642502018540,1.20677277,3188.7,3188.1,0.00625265]
[1642502018991,1.32624406,3189.4,3187.9,0.0073895]
[1642502019193,1.32624406,3189.4,3187.9,1.1914895]
[1642502019395,1.32624406,3189.4,3188.0,3.20510565]
[1642502019592,3.7096451,3190.0,3189.8,4.8199639]
[1642502019796,3.7096451,3190.0,3189.8,3.71658075]
[1642502019797,1.49281214,3189.9,3189.8,3.71658075]
[1642502019996,2.88355412,3189.9,3189.8,3.71658075]
[1642502020294,5.4,3189.8,3188.9,0.1253]
[1642502020498,5.4,3189.8,3188.1,1.88896462]
[1642502020499,5.4,3189.8,3188.5,0.1254]
[1642502020697,5.4,3189.8,3188.2,0.1254]
[1642502020698,5.40170527,3189.8,3188.2,0.1254]
[1642502020895,5.40170527,3189.8,3188.1,0.784]
[1642502020896,0.00170527,3189.8,3188.1,0.784]
[1642502021095,0.00170527,3189.8,3188.3,0.00682108]
[1642502021300,2.5470451,3190.0,3189.4,0.01228788]
[1642502021496,2.5470451,3190.0,3189.6,0.04998864]
[1642502021497,1.49444929,3190.0,3189.6,0.04998864]
[1642502021696,0.63385486,3190.0,3189.6,0.04998864]
[1642502021896,1.96589864,3190.0,3189.6,4.12243347]
[1642502022096,0.63385486,3190.0,3189.6,4.12243347]
[1642502022296,0.63385486,3190.0,3189.7,0.97233748]
[1642502022932,0.63385486,3190.0,3189.6,3.12808042]
[1642502023132,1.10611058,3189.8,3189.6,0.6269494]
[1642502023345,1.10611058,3189.8,3189.6,2.1941494]
[1642502023632,0.63385486,3190.0,3189.7,2.95350687]
[1642502024037,0.63385486,3190.0,3189.7,3.73709687]
[1642502024236,0.02876874,3190.6,3189.8,5.05]
[1642502024440,0.02876874,3190.6,3189.9,2.87222593]
[1642502024637,1.35704023,3190.4,3190.0,1.8803618]
[1642502024837,1.35704023,3190.4,3190.1,2.76569195]
[1642502025037,0.00284212,3190.3,3189.7,0.1253]
[1642502025436,0.0022737,3190.2,3189.7,0.1253]
[1642502025638,0.0022737,3190.2,3189.5,0.00170527]
[1642502025842,0.00170527,3190.1,3189.5,0.00170527]
[1642502026038,0.00170527,3190.1,3189.4,0.00227369]
[1642502026284,1.35704023,3190.4,3189.4,0.00227369]
[1642502026285,1.33332421,3190.0,3189.4,0.00227369]
[1642502026686,1.70818736,3190.0,3189.4,0.00227369]
[1642502027089,1.23128617,3189.9,3189.3,0.00284211]
[1642502027892,0.01662569,3189.8,3189.3,0.00284211]
[1642502028091,1.23128617,3189.9,3189.3,0.00284211]
[1642502028294,1.20696568,3189.4,3189.3,0.00284211]
[1642502028693,2.30971721,3189.4,3189.3,0.00284211]
[1642502029292,2.30971721,3189.4,3188.7,0.00625265]
[1642502029592,2.30971721,3189.4,3188.9,1.4628439]
[1642502030059,2.30971721,3189.4,3189.0,0.00454738]
[1642502030851,2.30971721,3189.4,3188.8,0.00568423]
[1642502031550,2.30971721,3189.4,3188.7,1.56776]
[1642502031750,2.30971721,3189.4,3188.8,2.28591938]
[1642502031751,1.33411919,3188.9,3188.8,2.28591938]
[1642502031952,1.20696568,3189.4,3188.8,1.03745351]
[1642502032151,0.00284212,3190.3,3188.8,4.17257351]
[1642502032356,0.00284212,3190.3,3188.9,0.00511581]
[1642502032552,0.0022737,3190.2,3189.1,0.7838]
[1642502032751,0.0022737,3190.2,3189.2,0.6270262]
[1642502032956,0.00170527,3190.1,3189.2,0.00341054]
[1642502033152,0.00170527,3190.1,3189.3,0.00284211]
[1642502033153,1.15880672,3189.4,3189.3,0.00284211]
[1642502033350,1.15880672,3189.4,3188.9,1.4628439]
[1642502033351,1.15880672,3189.4,3189.2,0.00341054]
[1642502033551,1.15880672,3189.4,3189.0,0.00454738]
[1642502034387,1.472707,3189.3,3188.9,0.00511581]
[1642502035588,1.472707,3189.3,3188.9,2.81287876]
[1642502035887,1.472707,3189.3,3189.0,0.00454738]
[1642502036686,1.472707,3189.3,3189.1,2.67977153]
[1642502036687,1.27231101,3189.2,3189.1,2.67977153]
[1642502037087,1.27231101,3189.2,3189.1,2.68375049]
[1642502037532,1.27231101,3189.2,3189.1,0.00397896]
[1642502038233,1.472707,3189.3,3189.1,3.1029009]
[1642502038432,1.472707,3189.3,3189.1,3.46758049]
[1642502038633,1.472707,3189.3,3189.2,0.00341054]
[1642502039338,2.83865285,3189.3,3189.2,2.68318207]
[1642502039736,2.83865285,3189.3,3189.2,2.98318207]
[1642502039737,1.472707,3189.3,3189.2,2.98318207]
[1642502039936,1.472707,3189.3,3189.2,2.68318207]
[1642502040138,1.472707,3189.3,3189.2,5.65512585]
[1642502040543,0.00113685,3190.0,3189.3,0.6270637]
[1642502040738,0.00113685,3190.0,3189.4,2.64923393]
[1642502040739,1.08843838,3189.9,3189.4,2.64923393]
[1642502040942,1.08843838,3189.9,3189.4,0.00227369]
[1642502041138,1.08843838,3189.9,3189.5,0.00170527]
[1642502041391,1.08843838,3189.9,3189.5,2.67977153]
[1642502041787,1.08843838,3189.9,3189.6,0.00113684]
[1642502042186,1.15530186,3189.8,3189.6,3.10005878]
[1642502042388,0.00113685,3190.0,3189.6,0.00113684]
[1642502042587,0.02876874,3190.6,3189.6,0.00113684]
[1642502042588,0.02876874,3190.6,3189.8,0.01207919]
[1642502042788,0.02876874,3190.6,3189.8,5.41317113]
[1642502042789,1.53315,3189.9,3189.8,5.41317113]
[1642502042988,0.02876874,3190.6,3189.9,5.4]
[1642502042989,0.00284212,3190.5,3189.9,5.4]
[1642502043189,0.00284212,3190.5,3190.2,1.28336]
[1642502043490,0.00284212,3190.5,3190.3,1.6222317]
[1642502043491,0.00227369,3190.4,3190.3,1.6222317]
[1642502043687,0.00227369,3190.4,3190.3,6.0975317]
[1642502043895,0.02876874,3190.6,3190.4,5.25]
[1642502044092,0.02876874,3190.6,3190.5,3.7253]
[1642502044295,3.9845,3192.8,3190.5,3.7253]
[1642502044296,1.0,3192.5,3190.7,5.4]
[1642502044497,1.0,3192.5,3191.2,0.01294114]
[1642502044693,1.0,3192.5,3191.3,0.5013]
[1642502044895,1.3579391,3191.9,3191.4,0.78304]
[1642502045135,0.00852636,3191.9,3191.4,0.78304]
[1642502045339,1.0,3192.5,3191.5,3.09892194]
[1642502045535,1.0,3192.5,3191.9,0.6263119]
[1642502045733,1.0,3192.5,3192.0,3.60022194]
[1642502045734,0.00341054,3192.4,3192.0,3.60022194]
[1642502045934,0.0456537,3194.5,3192.1,4.75]
[1642502045935,1.48782537,3193.0,3192.1,4.75]
[1642502046233,0.01136847,3194.4,3192.2,3.10005878]
[1642502046437,5.81582217,3195.2,3192.8,0.78288]
[1642502046639,0.376,3195.1,3193.4,0.626297]
[1642502046833,0.00284212,3194.9,3193.4,0.626297]
[1642502047033,1.31501493,3194.8,3193.5,0.00511581]
[1642502047234,1.98168617,3194.7,3193.5,0.00511581]
[1642502047435,18.43,3194.5,3193.5,0.00511581]
[1642502047638,21.52892194,3194.4,3193.3,0.00625265]
[1642502047839,19.9963,3194.2,3192.9,0.00852635]
[1642502048038,19.9963,3194.2,3192.2,2.67977153]
[1642502048039,9.17984981,3194.1,3192.3,0.01193689]
[1642502048239,1.34341063,3194.0,3192.3,0.01193689]
[1642502048437,0.78329,3193.8,3192.3,0.01193689]
[1642502048639,0.78331,3193.6,3192.3,0.01193689]
[1642502048947,4.42050128,3193.7,3192.2,0.01250531]
[1642502048948,1.09871123,3193.4,3192.2,0.01250531]
[1642502049138,3.60026865,3193.3,3192.2,0.01250531]
[1642502049537,1.09871123,3193.4,3192.2,0.01250531]
[1642502049737,4.81036144,3193.4,3192.2,0.01250531]
[1642502049938,0.78326,3193.3,3192.2,0.01250531]
[1642502050441,2.66529123,3193.4,3192.2,0.01250531]
[1642502050841,0.78324,3193.3,3192.2,0.01250531]
[1642502051444,0.04505217,3193.2,3192.2,0.01250531]
[1642502051844,0.04505217,3193.2,3191.4,1.2532334]
[1642502051845,3.02378196,3193.0,3191.2,0.41447501]
[1642502052041,1.36906048,3192.3,3191.2,0.28927501]
[1642502052241,1.36906048,3192.3,3191.3,0.00511581]
[1642502052648,1.39747596,3192.2,3191.3,0.00511581]
[1642502052844,1.39747596,3192.2,3191.3,2.67817941]
[1642502053044,2.18097596,3192.2,3191.3,2.67817941]
[1642502053244,2.18097596,3192.2,3191.4,0.00454739]
[1642502054545,2.18097596,3192.2,3190.6,3.06350562]
[1642502054546,0.78356,3191.9,3190.6,3.06350562]
[1642502054946,1.19745992,3191.8,3190.7,0.00397896]
[1642502055146,1.52884148,3191.7,3190.7,0.00397896]
[1642502055350,1.51721395,3191.7,3190.5,0.00511581]
[1642502055549,0.00113685,3191.6,3190.5,0.00511581]
[1642502055950,0.78375,3191.5,3190.5,0.00511581]
[1642502056152,1.15501927,3190.6,3190.5,2.66519145]
[1642502056416,1.29956355,3190.6,3190.5,0.00511581]
[1642502056818,1.29956355,3190.6,3190.4,0.00568424]
[1642502057015,1.29956355,3190.6,3190.4,0.55415934]
[1642502057217,1.29956355,3190.6,3190.5,5.41279905]
[1642502057218,1.50302339,3190.6,3190.5,5.41279905]
[1642502057416,0.00113685,3191.6,3190.8,0.26785813]
[1642502057617,0.00113685,3191.6,3190.9,0.1253]
[1642502057815,0.00113685,3191.6,3190.9,0.12814212]
[1642502058022,0.00113685,3191.6,3191.2,1.0965943]
[1642502058420,1.4458264,3191.4,3191.2,1.0965943]
[1642502058824,1.41048659,3191.5,3191.4,4.26805302]
[1642502059226,2.77130898,3191.5,3191.4,4.26805302]
[1642502060031,4.40905,3192.7,3191.8,1.46242449]
[1642502060234,0.78343,3192.4,3191.8,1.46242449]
[1642502060433,5.4,3192.3,3191.4,4.26918987]
[1642502060638,2.66542168,3192.6,3190.4,3.06763282]
[1642502060639,0.6016,3192.0,3190.4,3.06763282]
[1642502060832,0.6016,3192.0,3190.3,0.5]
[1642502060833,0.99834081,3191.9,3190.3,0.5]
[1642502061034,0.99834081,3191.9,3190.5,0.00511581]
[1642502061035,0.60444212,3191.9,3190.5,0.00511581]
[1642502061234,0.00227369,3191.8,3190.7,0.78339]
[1642502061435,0.6016,3191.2,3190.8,0.1253]
[1642502061633,0.6016,3191.2,3190.8,0.67710374]
[1642502061837,0.6016,3191.2,3190.9,1.08618212]
[1642502062035,0.6016,3191.2,3190.9,1.09854235]
[1642502062335,0.6016,3191.2,3191.0,0.00227369]
[1642502062535,0.6016,3191.2,3191.1,4.2753]
[1642502062735,0.6016,3191.2,3191.1,4.5753]
[1642502062935,0.6016,3191.2,3191.1,4.57700527]
[1642502063434,0.00170527,3191.7,3191.1,4.57700527]
[1642502063435,0.00170527,3191.7,3191.2,4.65]
[1642502063783,0.00113685,3191.6,3191.2,7.5476954]
[1642502063985,0.00113685,3191.6,3191.3,1.3964573]
[1642502064186,0.35649477,3193.0,3191.3,1.3964573]
[1642502064391,0.3474,3191.8,3191.3,2.9627573]
[1642502064788,0.00170527,3191.7,3191.5,2.1145812]
[1642502065189,0.00113685,3191.6,3191.5,2.1145812]
[1642502065392,0.00113685,3191.6,3191.5,1.3313912]
[1642502065689,0.3474,3191.4,3191.3,4.75237999]
[1642502066091,0.3474,3191.4,3191.3,3.65592269]
[1642502066497,0.3474,3191.4,3191.3,6.59197039]
[1642502066689,0.3474,3191.4,3191.3,2.9360477]
[1642502067537,0.3474,3191.4,3191.3,6.3360477]
[1642502068131,0.3474,3191.4,3191.3,9.99197039]
[1642502068731,0.3474,3191.4,3191.3,6.59197039]
[1642502068935,1.26485682,3191.5,3191.4,0.62095039]
[1642502069635,1.29377391,3192.1,3191.8,1.34693063]
[1642502070034,1.40884242,3192.0,3191.8,1.34693063]
[1642502070435,0.00170527,3191.9,3191.8,1.34693063]
[1642502070635,1.32477507,3192.0,3191.8,1.34693063]
[1642502072587,1.32477507,3192.0,3191.8,3.54880519]
[1642502073283,1.32477507,3192.0,3191.8,1.34693063]
[1642502073483,1.32477507,3192.0,3191.8,4.28276337]
[1642502074491,1.32477507,3192.0,3191.9,2.93583274]
[1642502075537,0.78336,3192.5,3192.3,1.66649126]
[1642502075738,2.77613146,3192.4,3192.3,1.66649126]
[1642502075938,2.77897357,3192.4,3192.3,1.66649126]
[1642502076343,5.4,3192.2,3191.8,1.60461322]
[1642502076540,5.4,3192.2,3191.4,0.62208724]
[1642502076541,0.376,3192.1,3191.4,0.62208724]
[1642502076740,0.37713684,3192.1,3191.4,0.62208724]
[1642502076940,0.37713684,3192.1,3191.5,0.0022737]
[1642502077139,0.37713684,3192.1,3191.9,1.46933355]
[1642502077938,4.18362,3192.0,3191.9,1.46933355]
[1642502078140,4.8,3191.9,3191.7,2.20400033]
[1642502078339,5.4,3191.7,3190.9,3.65592269]
[1642502078540,1.15962,3192.0,3190.9,3.65592269]
[1642502078541,0.00170527,3191.8,3190.9,3.65592269]
[1642502078780,0.00170527,3191.8,3191.0,0.00284211]
[1642502078985,0.37713685,3191.7,3191.0,0.00284211]
[1642502079186,2.8275585,3191.6,3191.0,0.00284211]
[1642502079385,0.0409866,3191.4,3191.0,0.00284211]
[1642502079586,0.0409866,3191.4,3190.4,0.00625266]
[1642502079784,3.72133298,3191.4,3190.4,0.00625266]
[1642502079987,3.68034638,3191.4,3190.4,0.00625266]
[1642502080384,1.48551678,3190.6,3190.4,0.00625266]
[1642502080585,1.17793955,3190.5,3190.4,0.00625266]
[1642502081489,5.4,3190.4,3189.9,4.28643748]
[1642502081688,0.376,3190.3,3189.9,4.28643748]
[1642502081887,0.376,3190.3,3190.1,0.00170527]
[1642502082087,0.38933215,3190.3,3190.1,0.00170527]
[1642502082286,1.16,3190.3,3190.1,0.00170527]
[1642502082559,1.41787317,3190.2,3190.1,0.00170527]
[1642502083141,6.81787317,3190.2,3190.1,0.00170527]
[1642502083745,5.4,3190.1,3189.9,4.23814275]
[1642502083943,1.2936331,3190.0,3189.9,4.23814275]
[1642502084144,6.3436331,3190.0,3189.9,4.23814275]
[1642502084344,6.3436331,3190.0,3189.9,2.44847579]
[1642502085443,1.6696331,3190.0,3189.9,1.7908038]
[1642502085644,2.4536331,3190.0,3189.9,1.7908038]
[1642502085844,1.6696331,3190.0,3189.9,1.7908038]
[1642502086043,4.7696331,3190.0,3189.9,1.7908038]
[1642502087887,4.7696331,3190.0,3189.3,1.47876926]
[1642502088087,4.7696331,3190.0,3189.0,2.21690638]
[1642502088088,5.4,3189.7,3189.0,2.21690638]
[1642502088302,5.4,3189.7,3189.4,0.00284212]
[1642502088303,0.40795508,3189.6,3189.4,0.00284212]
[1642502088488,5.4,3189.4,3189.0,2.20806188]
[1642502088688,0.376,3189.3,3189.1,0.00170527]
[1642502089096,6.18426,3189.2,3189.0,2.05687934]
[1642502089293,8.97439695,3189.1,3189.0,2.05687934]
[1642502089493,6.91331756,3189.1,3189.0,2.05687934]
[1642502089893,6.91331756,3189.1,3188.8,2.94993108]
[1642502090136,6.91331756,3189.1,3188.3,0.1253]
[1642502090137,1.22515097,3188.5,3188.3,0.1253]
[1642502090341,1.60115097,3188.5,3188.3,0.1253]
[1642502090534,0.376,3188.5,3188.4,0.00397896]
[1642502091033,0.376,3188.5,3188.2,2.94993108]
[1642502091034,0.376,3188.5,3188.3,0.00454739]
[1642502091833,1.49101438,3188.6,3188.5,3.91212556]
[1642502092033,3.69101438,3188.6,3188.5,3.91212556]
[1642502092234,1.49101438,3188.6,3188.5,3.9155361]
[1642502092433,2.27539438,3188.6,3188.5,3.9155361]
[1642502092635,3.05974438,3188.6,3188.5,3.9155361]
[1642502093034,2.27536438,3188.6,3188.5,3.9155361]
[1642502093435,1.49101438,3188.6,3188.5,3.9155361]
[1642502093637,1.56877,3189.3,3188.5,3.9155361]
[1642502093638,4.47689,3189.5,3188.5,6.9389647]
[1642502093889,0.376,3189.7,3188.5,7.2389647]
[1642502094089,0.00170527,3189.4,3188.6,0.13823899]
[1642502094288,2.4277,3189.9,3188.6,0.13823899]
[1642502094289,0.00284212,3189.6,3188.6,0.12824212]
[1642502094489,0.00113685,3189.3,3189.1,1.34521133]
[1642502094690,3.10227369,3189.5,3189.1,1.34521133]
[1642502094889,3.1,3189.5,3189.1,1.34521133]
[1642502095189,0.00170527,3189.4,3189.1,1.34521133]
[1642502095392,0.00170527,3189.4,3189.1,1.25578349]
[1642502095592,0.00170527,3189.4,3188.7,3.02570229]
[1642502095593,0.00113685,3189.3,3188.7,3.32570229]
[1642502095792,0.00113685,3189.3,3188.7,0.30227369]
[1642502095992,0.00170527,3189.4,3188.8,0.00170527]
[1642502096190,0.00170527,3189.4,3188.6,0.07710527]
[1642502096391,0.00284212,3189.3,3188.5,3.91212556]
[1642502096891,0.00227369,3189.2,3188.8,2.67953604]
[1642502097191,0.00170527,3189.1,3188.8,2.67953604]
[1642502097635,0.00113685,3189.0,3188.8,2.67953604]
[1642502129460,0.00113685,3188.9,3188.5,4.16951506]
[1642502130563,0.00113685,3188.9,3188.5,3.86951506]
[1642502131401,0.00113685,3188.9,3188.5,3.78012808]
[1642502131602,1.12606308,3188.9,3188.5,3.69076152]
[1642502131803,1.12606308,3188.9,3188.5,3.60138435]
[1642502131804,0.01110148,3188.8,3188.5,3.60138435]
[1642502132004,0.451,3188.7,3188.5,3.60138435]
[1642502132202,1.39065914,3188.6,3188.5,3.60138435]
[1642502132602,1.39065914,3188.6,3188.5,3.6025212]
[1642502133004,5.4,3188.5,3187.3,0.1254]
[1642502133204,0.00793722,3188.4,3187.3,0.1254]
[1642502133404,0.451,3188.3,3187.4,0.00625266]
[1642502133805,1.11985799,3187.5,3187.0,0.13392635]
[1642502134007,0.451,3188.3,3187.2,0.00738951]
[1642502134214,0.451,3188.3,3187.1,0.00795793]
[1642502134407,0.78443,3188.2,3187.1,0.00795793]
[1642502134613,1.56885,3188.2,3187.1,0.00795793]
[1642502135057,1.56885,3188.2,3187.2,1.7309254]
[1642502135257,1.23547,3188.3,3187.2,1.7309254]
[1642502135258,0.451,3188.3,3187.2,1.7309254]
[1642502135457,0.451,3188.3,3187.3,0.00682108]
[1642502135657,4.0074,3188.5,3187.3,2.6838274]
[1642502136256,1.36348188,3188.4,3187.3,2.6838274]
[1642502136458,3.1,3188.2,3187.3,2.6838274]
[1642502136657,3.1,3188.2,3187.6,1.0978898]
[1642502136857,3.1,3188.2,3187.7,3.04780362]
[1642502136858,0.0001,3188.2,3187.7,3.04780362]
[1642502137057,0.0001,3188.2,3187.9,0.01225563]
[1642502137456,0.0001,3188.2,3188.0,0.00284212]
[1642502139106,0.0001,3188.2,3187.9,0.00341054]
[1642502139305,0.0001,3188.2,3187.5,0.00568424]
[1642502139704,0.0001,3188.2,3187.2,4.4065099]
[1642502139705,0.0001,3188.2,3187.3,0.00682108]
[1642502140506,0.0001,3188.2,3187.3,1.40480878]
[1642502140705,0.0001,3188.2,3187.4,0.53606968]
[1642502140906,1.21600103,3187.8,3187.4,0.53606968]
[1642502141106,1.21600103,3187.8,3187.5,0.00568424]
[1642502141406,1.18882858,3187.7,3187.5,0.00568424]
[1642502142204,0.0001,3188.2,3187.5,0.00568424]
[1642502142408,0.0001,3188.2,3187.2,0.00738951]
[1642502142650,1.20251995,3187.9,3186.8,0.0096632]
[1642502142851,1.20251995,3187.9,3186.7,0.01023162]
[1642502142852,1.56912,3187.7,3186.7,0.01023162]
[1642502143051,0.451,3187.9,3186.6,0.01080005]
[1642502143452,1.29599792,3187.5,3186.6,0.01080005]
[1642502143655,0.451,3187.9,3186.7,0.53617268]
[1642502143857,0.7846,3187.5,3186.7,0.53617268]
[1642502144056,0.78456,3187.6,3186.8,0.0096632]
[1642502144856,1.23555,3187.9,3186.8,0.0096632]
[1642502145059,0.78454,3187.7,3186.9,0.53617268]
[1642502145256,0.78464,3187.5,3186.9,0.53617268]
[1642502145457,0.78464,3187.5,3187.0,0.00852635]
[1642502145656,0.78454,3187.7,3187.0,0.00852635]
[1642502146401,1.56916,3187.7,3187.0,0.00852635]
[1642502146599,0.78462,3187.7,3187.0,0.00852635]
[1642502146902,0.78463,3187.4,3187.0,0.00852635]
[1642502147301,0.78463,3187.4,3186.6,0.01080005]
[1642502147500,1.56927,3187.7,3186.6,0.01080005]
[1642502147703,0.78458,3187.6,3186.6,0.01080005]
[1642502148101,0.78458,3187.6,3186.7,0.53616742]
[1642502148503,0.78458,3187.6,3186.8,0.0096632]
[1642502148701,0.78459,3187.5,3186.8,0.0096632]
[1642502148905,0.02295575,3187.4,3186.8,0.0096632]
[1642502149405,0.78459,3187.5,3186.8,0.0096632]